fUSD/lending_fUSD_20250806
["ID","MTS","AMOUNT","RATE_DAILY","PERIOD"]
[377593814,1754448784365,-1217.8,0.00037808,14]
[377593815,1754448784375,-400.0,0.00037808,14]
[377593816,1754448784384,-719.56,0.00037808,14]
[377593817,1754448784393,-397.62706876,0.00037808,14]
[377593818,1754448784403,-426.16,0.00037808,14]
[377593819,1754448784412,-2284.92,0.00037808,14]
[377593820,1754448784421,-2049.87,0.00037808,14]
[377593821,1754448784431,-400.0,0.00037808,14]
[377593822,1754448784441,-400.0,0.00037808,14]
[377593823,1754448784450,-400.0,0.00037808,14]
[377593824,1754448784459,-400.0,0.00037808,14]
[377593825,1754448784468,-1324.35,0.00037808,14]
[377593826,1754448784478,-400.0,0.00037808,14]
[377593827,1754448784487,-400.0,0.00037808,14]
[377593828,1754448784496,-536.81,0.00037808,14]
[377593829,1754448784506,-1978.73,0.00037808,14]
[377593830,1754448784515,-2066.75,0.00037808,14]
[377593831,1754448784524,-400.0,0.00037808,14]
[377593832,1754448784533,-400.0,0.00037808,14]
[377593833,1754448784542,-180.46027733,0.00037808,14]
[377593834,1754448784551,-2370.33,0.00037808,14]
[377593835,1754448784560,-400.0,0.00037808,14]
[377593836,1754448784569,-400.0,0.00037808,14]
[377593837,1754448784578,-618.59,0.00037808,14]
[377593838,1754448784587,-400.0,0.00037808,14]
[377593839,1754448784597,-1918.49,0.00037808,14]
[377593840,1754448784606,-1380.46,0.00037808,14]
[377593841,1754448784615,-400.0,0.00037808,14]
[377593842,1754448784624,-681.38,0.00037808,14]
[377593843,1754448784633,-898.87,0.00037808,14]
[377593844,1754448784643,-1159.52,0.00037808,14]
[377593845,1754448784652,-589.89,0.00037808,14]
[377593846,1754448784661,-2526.57,0.00037808,14]
[377593847,1754448784671,-400.0,0.00037808,14]
[377593848,1754448784680,-400.0,0.00037808,14]
[377593849,1754448784691,-481.3,0.00037808,14]
[377593850,1754448784701,-1943.34,0.00037808,14]
[377593851,1754448784713,-771.1,0.00037808,14]
[377593852,1754448784722,-738.49,0.00037808,14]
[377593853,1754448784732,-1101.66,0.00037808,14]
[377593854,1754448784741,-2119.77,0.00037808,14]
[377593855,1754448784750,-400.0,0.00037808,14]
[377593856,1754448784760,-448.62,0.00037808,14]
[377593857,1754448784771,-400.0,0.00037808,14]
[377593858,1754448784782,-2486.07,0.00037808,14]
[377593859,1754448784793,-400.0,0.00037808,14]
[377593860,1754448784802,-400.0,0.00037808,14]
[377593861,1754448784812,-400.0,0.00037808,14]
[377593862,1754448784822,-825.89,0.00037808,14]
[377593863,1754448784833,-1301.09,0.00037808,14]
[377593864,1754448784842,-400.0,0.00037808,14]
[377593865,1754448784853,-400.0,0.00037808,14]
[377593866,1754448784863,-400.0,0.00037808,14]
[377593867,1754448784873,-400.0,0.00037808,14]
[377593868,1754448784888,-400.0,0.00037808,14]
[377593869,1754448784898,-400.0,0.00037808,14]
[377593870,1754448785031,-681.33,0.00037808,14]
[377593871,1754448785045,-424.16,0.00037808,14]
[377593872,1754448785055,-1940.75,0.00037808,14]
[377593873,1754448785065,-400.0,0.00037808,14]
[377593874,1754448785074,-2332.46,0.00037808,14]
[377593875,1754448785084,-400.0,0.00037808,14]
[377593876,1754448785095,-400.0,0.00037808,14]
[377593877,1754448785105,-1594.04,0.00037808,14]
[377593878,1754448785116,-400.0,0.00037808,14]
[377593879,1754448785126,-1556.67,0.00037808,14]
[377593880,1754448785136,-400.0,0.00037808,14]
[377593881,1754448785147,-2008.42,0.00037808,14]
[377593882,1754448785157,-400.0,0.00037808,14]
[377593883,1754448785166,-803.41,0.00037808,14]
[377593884,1754448785176,-1049.45,0.00037808,14]
[377593885,1754448785186,-2287.11,0.00037808,14]
[377593886,1754448785195,-2094.9,0.00037808,14]
[377593887,1754448785204,-3089.8,0.00037808,14]
[377593888,1754448785214,-2284.3,0.00037808,14]
[377593889,1754448785224,-1760.6,0.00037808,14]
[377593890,1754448785236,-904.68,0.00037808,14]
[377593891,1754448785246,-590.2,0.00037808,14]
[377593892,1754448785256,-524.39,0.00037808,14]
[377593893,1754448785265,-538.64,0.00037808,14]
[377593894,1754448785274,-400.0,0.00037808,14]
[377593895,1754448785284,-400.0,0.00037808,14]
[377593896,1754448785294,-477.4,0.00037808,14]
[377593897,1754448785303,-473.05,0.00037808,14]
[377593898,1754448785313,-1562.45,0.00037808,14]
[377593899,1754448785322,-681.47,0.00037808,14]
[377593900,1754448785331,-1343.91,0.00037808,14]
[377593901,1754448785340,-1123.2,0.00037808,14]
[377593902,1754448785350,-400.0,0.00037808,14]
[377593903,1754448785360,-402.35,0.00037808,14]
[377593904,1754448785370,-536.11392906,0.00037808,14]
[377593905,1754448785379,-992.23,0.00037808,14]
[377593906,1754448785389,-400.0,0.00037808,14]
[377593907,1754448785398,-400.0,0.00037808,14]
[377593908,1754448785407,-659.8,0.00037808,14]
[377593909,1754448785417,-905.29,0.00037808,14]
[377593910,1754448785426,-400.0,0.00037808,14]
[377593911,1754448785435,-833.81,0.00037808,14]
[377593912,1754448785445,-400.0,0.00037808,14]
[377593913,1754448785457,-400.0,0.00037808,14]
[377593914,1754448785468,-400.0,0.00037808,14]
[377593915,1754448785479,-1620.39,0.00037808,14]
[377593916,1754448785490,-400.0,0.00037808,14]
[377593917,1754448785500,-1647.26,0.00037808,14]
[377593918,1754448785513,-2673.63,0.00037808,14]
[377593919,1754448785524,-423.93,0.00037808,14]
[377593920,1754448785535,-400.0,0.00037808,14]
[377593921,1754448785544,-3032.43,0.00037808,14]
[377593922,1754448785553,-400.0,0.00037808,14]
[377593923,1754448785563,-2718.79,0.00037808,14]
[377593924,1754448785572,-400.0,0.00037808,14]
[377593925,1754448785581,-652.53,0.00037808,14]
[377593926,1754448785591,-537.68,0.00037808,14]
[377593927,1754448785600,-400.0,0.00037808,14]
[377593928,1754448785609,-1352.85,0.00037808,14]
[377593929,1754448785618,-591.66,0.00037808,14]
[377593930,1754448785627,-1194.25,0.00037808,14]
[377593931,1754448785638,-1325.26,0.00037808,14]
[377593932,1754448785647,-687.17,0.00037808,14]
[377593933,1754448785657,-400.0,0.00037808,14]
[377593934,1754448785666,-400.0,0.00037808,14]
[377593935,1754448785676,-2118.84,0.00037808,14]
[377593936,1754448785685,-3219.58,0.00037808,14]
[377593937,1754448785694,-2996.94,0.00037808,14]
[377593938,1754448785703,-400.0,0.00037808,14]
[377593939,1754448785712,-1193.92,0.00037808,14]
[377593940,1754448785722,-400.0,0.00037808,14]
[377593941,1754448785732,-400.0,0.00037808,14]
[377593942,1754448785742,-400.0,0.00037808,14]
[377593943,1754448785751,-400.0,0.00037808,14]
[377593944,1754448785760,-825.46,0.00037808,14]
[377593945,1754448785770,-400.0,0.00037808,14]
[377593946,1754448785780,-509.96,0.00037808,14]
[377593947,1754448785790,-2113.04,0.00037808,14]
[377593948,1754448785800,-1273.79,0.00037808,14]
[377593949,1754448785809,-400.0,0.00037808,14]
[377593950,1754448785819,-400.0,0.00037808,14]
[377593951,1754448785828,-2100.37,0.00037808,14]
[377593952,1754448785838,-400.0,0.00037808,14]
[377593953,1754448785848,-445.22,0.00037808,14]
[377593954,1754448785858,-400.0,0.00037808,14]
[377593955,1754448785868,-2053.25,0.00037808,14]
[377593956,1754448785879,-1931.44,0.00037808,14]
[377593957,1754448785890,-400.0,0.00037808,14]
[377593958,1754448785899,-400.0,0.00037808,14]
[377593959,1754448785908,-590.55,0.00037808,14]
[377593960,1754448785918,-1620.16,0.00037808,14]
[377593961,1754448785928,-400.0,0.00037808,14]
[377593962,1754448785938,-457.71,0.00037808,14]
[377593963,1754448785947,-2044.76,0.00037808,14]
[377593964,1754448785958,-238.96,0.00037808,14]
[377593965,1754448785968,-400.0,0.00037808,14]
[377593966,1754448785977,-2493.6,0.00037808,14]
[377593967,1754448785987,-1325.52,0.00037808,14]
[377593968,1754448785997,-3399.61,0.00037808,14]
[377593969,1754448786007,-400.0,0.00037808,14]
[377593970,1754448786017,-400.0,0.00037808,14]
[377593971,1754448786027,-486.69,0.00037808,14]
[377593972,1754448786036,-1026.17,0.00037808,14]
[377593973,1754448786047,-400.0,0.00037808,14]
[377593974,1754448786056,-723.29,0.00037808,14]
[377593975,1754448786066,-400.0,0.00037808,14]
[377593976,1754448786075,-651.88,0.00037808,14]
[377593977,1754448786085,-400.0,0.00037808,14]
[377593978,1754448786095,-903.69,0.00037808,14]
[377593979,1754448786105,-1532.92,0.00037808,14]
[377593980,1754448786117,-672.26,0.00037808,14]
[377593981,1754448786126,-400.0,0.00037808,14]
[377593982,1754448786136,-400.0,0.00037808,14]
[377593983,1754448786146,-1382.08,0.00037808,14]
[377593984,1754448786155,-400.0,0.00037808,14]
[377593985,1754448786165,-2614.37,0.00037808,14]
[377593986,1754448786176,-400.0,0.00037808,14]
[377593987,1754448786187,-677.89,0.00037808,14]
[377593988,1754448786197,-1383.95,0.00037808,14]
[377593989,1754448786209,-400.0,0.00037808,14]
[377593990,1754448786220,-400.0,0.00037808,14]
[377593991,1754448786233,-400.0,0.00037808,14]
[377593992,1754448786242,-579.93,0.00037808,14]
[377593993,1754448786253,-832.0,0.00037808,14]
[377593994,1754448786265,-400.0,0.00037808,14]
[377593995,1754448786275,-717.13,0.00037808,14]
[377593996,1754448786284,-1028.28,0.00037808,14]
[377593997,1754448786293,-400.0,0.00037808,14]
[377593998,1754448786302,-400.0,0.00037808,14]
[377593999,1754448786311,-2778.5,0.00037808,14]
[377594000,1754448786320,-1985.89,0.00037808,14]
[377594001,1754448786330,-400.0,0.00037808,14]
[377594002,1754448786339,-400.0,0.00037808,14]
[377594003,1754448786349,-400.0,0.00037808,14]
[377594004,1754448786358,-2015.29,0.00037808,14]
[377594005,1754448786367,-3708.79,0.00037808,14]
[377594006,1754448786376,-752.93,0.00037808,14]
[377594007,1754448786386,-400.0,0.00037808,14]
[377594008,1754448786396,-400.0,0.00037808,14]
[377594009,1754448786406,-735.15,0.00037808,14]
[377594010,1754448786415,-2553.57,0.00037808,14]
[377594011,1754448786424,-400.0,0.00037808,14]
[377594012,1754448786434,-1607.76,0.00037808,14]
[377594013,1754448786446,-400.0,0.00037808,14]
[377594014,1754448786456,-400.0,0.00037808,14]
[377594015,1754448786465,-757.96,0.00037808,14]
[377594016,1754448786475,-1838.27,0.00037808,14]
[377594017,1754448786484,-2459.31,0.00037808,14]
[377594018,1754448786494,-400.0,0.00037808,14]
[377594019,1754448786503,-2248.73,0.00037808,14]
[377594020,1754448786511,-865.96,0.00037808,14]
[377594021,1754448786521,-842.75,0.00037808,14]
[377594022,1754448786533,-1094.22,0.00037808,14]
[377594023,1754448786542,-1141.46,0.00037808,14]
[377594024,1754448786551,-2023.14,0.00037808,14]
[377594025,1754448786561,-546.8,0.00037808,14]
[377594026,1754448786572,-1074.3,0.00037808,14]
[377594027,1754448786583,-1520.4,0.00037808,14]
[377594028,1754448786594,-1903.84,0.00037808,14]
[377594029,1754448786604,-400.0,0.00037808,14]
[377594030,1754448786614,-715.12,0.00037808,14]
[377594031,1754448786624,-400.0,0.00037808,14]
[377594032,1754448786633,-1769.99,0.00037808,14]
[377594033,1754448786643,-3013.96,0.00037808,14]
[377594034,1754448786652,-450.72,0.00037808,14]
[377594035,1754448786661,-1189.15,0.00037808,14]
[377594036,1754448786670,-414.57,0.00037808,14]
[377594037,1754448786680,-400.0,0.00037808,14]
[377594038,1754448786689,-1853.29,0.00037808,14]
[377594039,1754448786698,-2171.13,0.00037808,14]
[377594040,1754448786708,-492.36,0.00037808,14]
[377594041,1754448786720,-1432.94,0.00037808,14]
[377594042,1754448786729,-2772.54,0.00037808,14]
[377594043,1754448786739,-400.0,0.00037808,14]
[377594044,1754448786747,-660.15,0.00037808,14]
[377594045,1754448786757,-687.86,0.00037808,14]
[377594046,1754448786766,-1512.02,0.00037808,14]
[377594047,1754448786776,-1752.0,0.00037808,14]
[377594048,1754448786785,-1827.77,0.00037808,14]
[377594049,1754448786795,-400.0,0.00037808,14]
[377594050,1754448786805,-2123.08,0.00037808,14]
[377594051,1754448786814,-400.0,0.00037808,14]
[377594052,1754448786824,-263.95606638,0.00037808,14]
[377594053,1754448786833,-710.17,0.00037808,14]
[377594054,1754448786842,-400.0,0.00037808,14]
[377594055,1754448786853,-3809.64,0.00037808,14]
[377594056,1754448786863,-541.8,0.00037808,14]
[377594057,1754448786872,-2320.18,0.00037808,14]
[377594058,1754448786885,-400.0,0.00037808,14]
[377594059,1754448786895,-1290.75,0.00037808,14]
[377594060,1754448786912,-2988.22,0.00037808,14]
[377594061,1754448786922,-650.32,0.00037808,14]
[377594062,1754448786933,-432.19,0.00037808,14]
[377594063,1754448786943,-400.0,0.00037808,14]
[377594064,1754448786952,-2067.35,0.00037808,14]
[377594065,1754448786963,-786.46,0.00037808,14]
[377594066,1754448786973,-1893.56,0.00037808,14]
[377594067,1754448786983,-400.0,0.00037808,14]
[377594068,1754448786992,-436.89,0.00037808,14]
[377594069,1754448787001,-400.0,0.00037808,14]
[377594070,1754448787011,-2121.86,0.00037808,14]
[377594071,1754448787020,-1091.29,0.00037808,14]
[377594072,1754448787029,-2572.93,0.00037808,14]
[377594073,1754448787039,-403.94,0.00037808,14]
[377594074,1754448787050,-400.0,0.00037808,14]
[377594075,1754448787059,-1090.58,0.00037808,14]
[377594076,1754448787068,-2572.33,0.00037808,14]
[377594077,1754448787077,-1310.5,0.00037808,14]
[377594078,1754448787087,-1680.95,0.00037808,14]
[377594079,1754448787096,-541.54,0.00037808,14]
[377594080,1754448787105,-1082.92,0.00037808,14]
[377594081,1754448787115,-615.57,0.00037808,14]
[377594082,1754448787124,-569.78,0.00037808,14]
[377594083,1754448787133,-456.45,0.00037808,14]
[377594084,1754448787143,-1272.84,0.00037808,14]
[377594085,1754448787153,-400.0,0.00037808,14]
[377594086,1754448787162,-1882.26,0.00037808,14]
[377594087,1754448787171,-1821.93,0.00037808,14]
[377594088,1754448787180,-2393.94,0.00037808,14]
[377594089,1754448787189,-210.46187462,0.00037808,14]
[377594090,1754448787199,-819.87,0.00037808,14]
[377594091,1754448787560,-374.48,0.00037808,14]
[377594092,1754448787575,-472.45,0.00037808,14]
[377594093,1754448787584,-400.0,0.00037808,14]
[377594094,1754448787594,-1723.53,0.00037808,14]
[377594095,1754448787603,-400.0,0.00037808,14]
[377594096,1754448787613,-571.97,0.00037808,14]
[377594097,1754448787622,-400.0,0.00037808,14]
[377594098,1754448787631,-2205.0,0.00037808,14]
[377594099,1754448787640,-2459.29,0.00037808,14]
[377594100,1754448787649,-1328.89,0.00037808,14]
[377594101,1754448787659,-400.0,0.00037808,14]
[377594102,1754448787668,-1450.07,0.00037808,14]
[377594103,1754448787677,-498.72,0.00037808,14]
[377594104,1754448787686,-400.0,0.00037808,14]
[377594105,1754448787695,-400.0,0.00037808,14]
[377594106,1754448787705,-248.13439318,0.00037808,14]
[377594107,1754448787715,-400.0,0.00037808,14]
[377594108,1754448787725,-2050.67,0.00037808,14]
[377594109,1754448787734,-1998.0,0.00037808,14]
[377594110,1754448787744,-2177.61,0.00037808,14]
[377594111,1754448787753,-565.91,0.00037808,14]
[377594112,1754448787762,-2230.94,0.00037808,14]
[377594113,1754448787771,-2851.05,0.00037808,14]
[377594114,1754448787781,-400.0,0.00037808,14]
[377594115,1754448787791,-1023.05,0.00037808,14]
[377594116,1754448787801,-1541.91,0.00037808,14]
[377594117,1754448787810,-400.0,0.00037808,14]
[377594118,1754448787826,-518.06,0.00037808,14]
[377594119,1754448787843,-1947.18,0.00037808,14]
[377594120,1754448787853,-1743.92,0.00037808,14]
[377594121,1754448787863,-1701.37,0.00037808,14]
[377594122,1754448787872,-1840.41,0.00037808,14]
[377594123,1754448787884,-400.0,0.00037808,14]
[377594124,1754448787894,-3617.37,0.00037808,14]
[377594125,1754448787903,-1293.69,0.00037808,14]
[377594126,1754448787912,-400.0,0.00037808,14]
[377594127,1754448787922,-400.0,0.00037808,14]
[377594128,1754448787933,-1163.86,0.00037808,14]
[377594129,1754448787943,-2062.42,0.00037808,14]
[377594130,1754448787953,-400.0,0.00037808,14]
[377594131,1754448787965,-1802.74,0.00037808,14]
[377594132,1754448787975,-400.0,0.00037808,14]
[377594133,1754448787985,-2082.15,0.00037808,14]
[377594134,1754448787994,-1704.62,0.00037808,14]
[377594135,1754448788004,-2004.98,0.00037808,14]
[377594136,1754448788015,-578.97,0.00037808,14]
[377594137,1754448788025,-1140.6,0.00037808,14]
[377594138,1754448788035,-2059.67,0.00037808,14]
[377594139,1754448788044,-400.0,0.00037808,14]
[377594140,1754448788054,-400.0,0.00037808,14]
[377594141,1754448788064,-400.0,0.00037808,14]
[377594142,1754448788074,-400.0,0.00037808,14]
[377594143,1754448788084,-400.0,0.00037808,14]
[377594144,1754448788094,-2008.93,0.00037808,14]
[377594145,1754448788103,-400.0,0.00037808,14]
[377594146,1754448788113,-400.0,0.00037808,14]
[377594147,1754448788123,-2421.14,0.00037808,14]
[377594148,1754448788133,-1042.45,0.00037808,14]
[377594149,1754448788142,-1854.33,0.00037808,14]
[377594150,1754448788153,-904.89,0.00037808,14]
[377594151,1754448788163,-400.0,0.00037808,14]
[377594152,1754448788173,-1949.77,0.00037808,14]
[377594153,1754448788182,-717.97,0.00037808,14]
[377594154,1754448788191,-439.26,0.00037808,14]
[377594155,1754448788201,-995.71,0.00037808,14]
[377594156,1754448788211,-944.69,0.00037808,14]
[377594157,1754448788220,-400.0,0.00037808,14]
[377594158,1754448788229,-1533.65,0.00037808,14]
[377594159,1754448788239,-564.92,0.00037808,14]
[377594160,1754448788248,-400.0,0.00037808,14]
[377594161,1754448788258,-1068.1,0.00037808,14]
[377594162,1754448788267,-1225.03,0.00037808,14]
[377594163,1754448788277,-400.0,0.00037808,14]
[377594164,1754448788287,-483.03490506,0.00037808,14]
[377594165,1754448788297,-463.8,0.00037808,14]
[377594166,1754448788307,-423.39,0.00037808,14]
[377594167,1754448788316,-5248.2,0.00037808,14]
[377594168,1754448788326,-400.0,0.00037808,14]
[377594169,1754448788335,-2409.79,0.00037808,14]
[377594170,1754448788345,-400.0,0.00037808,14]
[377594171,1754448788356,-1276.5,0.00037808,14]
[377594172,1754448788365,-400.0,0.00037808,14]
[377594173,1754448788375,-919.64,0.00037808,14]
[377594174,1754448788385,-1930.39,0.00037808,14]
[377594175,1754448788394,-465.73,0.00037808,14]
[377594176,1754448788404,-481.93,0.00037808,14]
[377594177,1754448788415,-680.58,0.00037808,14]
[377594178,1754448788425,-2002.8,0.00037808,14]
[377594179,1754448788436,-1671.93,0.00037808,14]
[377594180,1754448788446,-400.0,0.00037808,14]
[377594181,1754448788456,-1784.3,0.00037808,14]
[377594182,1754448788467,-3610.35,0.00037808,14]
[377594183,1754448788477,-1873.43,0.00037808,14]
[377594184,1754448788488,-1790.5,0.00037808,14]
[377594185,1754448788499,-400.0,0.00037808,14]
[377594186,1754448788509,-539.71,0.00037808,14]
[377594187,1754448788520,-1409.58,0.00037808,14]
[377594188,1754448788531,-400.0,0.00037808,14]
[377594189,1754448788542,-589.06,0.00037808,14]
[377594190,1754448788552,-485.14,0.00037808,14]
[377594191,1754448788564,-493.42,0.00037808,14]
[377594192,1754448788574,-769.03,0.00037808,14]
[377594193,1754448788586,-1966.76,0.00037808,14]
[377594194,1754448788595,-446.21,0.00037808,14]
[377594195,1754448788605,-1081.98,0.00037808,14]
[377594196,1754448788615,-1264.89,0.00037808,14]
[377594197,1754448788624,-974.88,0.00037808,14]
[377594198,1754448788634,-662.34,0.00037808,14]
[377594199,1754448788645,-2193.87,0.00037808,14]
[377594200,1754448788656,-950.01,0.00037808,14]
[377594201,1754448788666,-400.0,0.00037808,14]
[377594202,1754448788676,-2313.76,0.00037808,14]
[377594203,1754448788686,-861.94,0.00037808,14]
[377594204,1754448788695,-2151.64,0.00037808,14]
[377594205,1754448788706,-433.2,0.00037808,14]
[377594206,1754448788718,-156.64445777,0.00037808,14]
[377594207,1754448788729,-2093.1,0.00037808,14]
[377594208,1754448788738,-2798.78,0.00037808,14]
[377594209,1754448788749,-400.0,0.00037808,14]
[377594210,1754448788758,-400.0,0.00037808,14]
[377594211,1754448788767,-1160.89,0.00037808,14]
[377594212,1754448788776,-1069.38,0.00037808,14]
[377594213,1754448788785,-825.71,0.00037808,14]
[377594214,1754448788795,-1990.46,0.00037808,14]
[377594215,1754448788804,-400.0,0.00037808,14]
[377594216,1754448788814,-178.01304195,0.00037808,14]
[377594217,1754448788823,-400.0,0.00037808,14]
[377594218,1754448788832,-552.31,0.00037808,14]
[377594219,1754448788842,-400.0,0.00037808,14]
[377594220,1754448788852,-2248.31,0.00037808,14]
[377594221,1754448788861,-534.6,0.00037808,14]
[377594222,1754448788871,-2830.73,0.00037808,14]
[377594223,1754448788881,-400.0,0.00037808,14]
[377594224,1754448788892,-400.0,0.00037808,14]
[377594225,1754448788902,-400.0,0.00037808,14]
[377594226,1754448788912,-2866.67,0.00037808,14]
[377594227,1754448788924,-877.07,0.00037808,14]
[377594228,1754448788933,-636.63,0.00037808,14]
[377594229,1754448788942,-1151.11,0.00037808,14]
[377594230,1754448788951,-1232.95,0.00037808,14]
[377594231,1754448788963,-404.16,0.00037808,14]
[377594232,1754448788973,-663.46,0.00037808,14]
[377594233,1754448788983,-1463.25,0.00037808,14]
[377594234,1754448788993,-506.01,0.00037808,14]
[377594235,1754448789002,-2179.89,0.00037808,14]
[377594236,1754448789011,-2812.46,0.00037808,14]
[377594237,1754448789021,-4617.44,0.00037808,14]
[377594238,1754448789030,-400.0,0.00037808,14]
[377594239,1754448789039,-1734.55,0.00037808,14]
[377594240,1754448789050,-400.0,0.00037808,14]
[377594241,1754448789059,-400.0,0.00037808,14]
[377594242,1754448789070,-3963.12,0.00037808,14]
[377594243,1754448789079,-494.88839183,0.00037808,14]
[377594244,1754448789088,-2023.55,0.00037808,14]
[377594245,1754448789098,-534.1,0.00037808,14]
[377594246,1754448789109,-2294.7,0.00037808,14]
[377594247,1754448789118,-400.0,0.00037808,14]
[377594248,1754448789127,-400.0,0.00037808,14]
[377594249,1754448789137,-2092.3,0.00037808,14]
[377594250,1754448789147,-586.88,0.00037808,14]
[377594251,1754448789157,-523.66,0.00037808,14]
[377594252,1754448789166,-933.36,0.00037808,14]
[377594253,1754448789176,-1684.51,0.00037808,14]
[377594254,1754448789185,-1056.52,0.00037808,14]
[377594255,1754448789195,-3017.99,0.00037808,14]
[377594256,1754448789205,-435.03,0.00037808,14]
[377594257,1754448789215,-914.87,0.00037808,14]
[377594258,1754448789227,-611.39,0.00037808,14]
[377594259,1754448789238,-400.0,0.00037808,14]
[377594260,1754448789247,-1545.14,0.00037808,14]
[377594261,1754448789258,-833.08,0.00037808,14]
[377594262,1754448789267,-1534.85,0.00037808,14]
[377594263,1754448789278,-796.41,0.00037808,14]
[377594264,1754448789290,-400.0,0.00037808,14]
[377594265,1754448789300,-343.30271596,0.00037808,14]
[377594266,1754448789319,-1665.11,0.00037808,14]
[377594267,1754448789328,-1365.89,0.00037808,14]
[377594268,1754448789337,-1954.64,0.00037808,14]
[377594269,1754448789348,-2159.33,0.00037808,14]
[377594270,1754448789357,-5160.74,0.00037808,14]
[377594271,1754448789367,-370.60032683,0.00037808,14]
[377594272,1754448789376,-1952.38,0.00037808,14]
[377594273,1754448789386,-400.0,0.00037808,14]
[377594275,1754448789395,-1216.69,0.00037808,14]
[377594276,1754448789406,-1829.55,0.00037808,14]
[377594277,1754448789415,-2121.64,0.00037808,14]
[377594278,1754448789424,-400.0,0.00037808,14]
[377594279,1754448789434,-2523.11,0.00037808,14]
[377594280,1754448789443,-2978.88,0.00037808,14]
[377594281,1754448789453,-945.39,0.00037808,14]
[377594282,1754448789462,-2518.04,0.00037808,14]
[377594283,1754448789471,-859.36,0.00037808,2]
[377594284,1754448789481,-793.99,0.00037808,14]
[377594285,1754448789489,-400.0,0.00037808,14]
[377594286,1754448789498,-532.72,0.00037808,14]
[377594287,1754448789507,-1289.03,0.00037808,14]
[377594288,1754448789516,-2721.87,0.00037808,14]
[377594289,1754448789526,-400.0,0.00037808,14]
[377594290,1754448789535,-400.0,0.00037808,14]
[377594291,1754448789544,-3987.14,0.00037808,14]
[377594292,1754448789553,-601.08,0.00037808,14]
[377594293,1754448789563,-1073.41,0.00037808,14]
[377594294,1754448789572,-400.0,0.00037808,14]
[377594295,1754448789582,-412.5,0.00037808,14]
[377594296,1754448789592,-400.0,0.00037808,14]
[377594297,1754448789601,-400.0,0.00037808,14]
[377594298,1754448789611,-400.0,0.00037808,14]
[377594299,1754448789620,-2539.32,0.00037808,14]
[377594300,1754448789629,-3437.75,0.00037808,14]
[377594301,1754448789638,-2655.03,0.00037808,14]
[377594302,1754448789647,-500.14,0.00037808,14]
[377594303,1754448789657,-1000.0,0.00037808,30]
[377594304,1754448789666,-400.0,0.00037808,14]
[377594305,1754448789675,-1245.68,0.00037808,14]
[377594306,1754448789684,-400.0,0.00037808,14]
[377594307,1754448789694,-828.5,0.00037808,14]
[377594308,1754448789705,-3583.37,0.00037808,14]
[377594309,1754448789714,-788.77,0.00037808,14]
[377594310,1754448789722,-2735.46,0.00037808,14]
[377594311,1754448789731,-4387.31,0.00037808,14]
[377594312,1754448789740,-1688.61,0.00037808,14]
[377594313,1754448789749,-3134.6,0.00037808,14]
[377594314,1754448789759,-3166.75,0.00037808,14]